bitfinex/quotes_ETHUSD_20250724
["timestamp","ask_amount","ask_price","bid_price","bid_amount"]
[1753316861726,3.86699942,3640.7,3640.3,0.4383]
[1753316862289,6.6137414,3640.7,3640.3,0.4383]
[1753316862496,3.6137414,3640.7,3640.3,0.4383]
[1753316863038,0.86699942,3640.7,3640.2,4.251]
[1753316863242,0.86699942,3640.7,3640.3,0.4383]
[1753316863839,0.71338159,3640.6,3640.2,4.251]
[1753316864140,3.1368,3640.6,3640.1,7.13496055]
[1753316864326,3.1368,3640.6,3640.2,0.4383]
[1753316864537,5.88360399,3640.6,3640.1,4.3878]
[1753316864709,5.88360399,3640.6,3640.3,0.4383]
[1753316864710,2.88360399,3640.6,3640.3,0.4383]
[1753316864897,3.1368,3640.6,3640.3,0.4383]
[1753316865096,2.88364411,3640.6,3640.1,0.1368]
[1753316865312,2.88364411,3640.6,3640.1,7.13496781]
[1753316865313,1.00383048,3640.6,3640.1,7.13496781]
[1753316865524,3.75063348,3640.6,3640.2,0.4383]
[1753316865847,3.75065746,3640.6,3640.2,0.4383]
[1753316866446,3.75065746,3640.6,3640.1,4.3868]
[1753316866818,3.75065746,3640.6,3640.1,4.8251]
[1753316867018,2.74694418,3640.5,3640.1,0.5751]
[1753316867230,2.74710051,3640.3,3639.8,0.4383]
[1753316867439,0.17113877,3640.2,3639.8,0.4383]
[1753316867659,0.1368,3640.2,3639.8,0.4383]
[1753316867822,0.17113877,3640.2,3639.7,4.25]
[1753316868022,0.17113877,3640.2,3639.7,4.6883]
[1753316868023,3.24429979,3640.2,3639.7,4.6883]
[1753316868225,0.49715388,3640.2,3639.7,4.25]
[1753316868420,2.74714972,3640.2,3639.7,4.25]
[1753316868633,2.88407899,3640.0,3639.5,0.8009]
[1753316868850,2.78170468,3639.9,3639.6,4.25]
[1753316869037,2.78170468,3639.9,3639.5,0.4383]
[1753316869253,0.0343416,3639.9,3639.5,4.6883]
[1753316869757,2.78170936,3639.9,3639.5,4.6883]
[1753316869913,2.78170936,3639.9,3639.5,4.25]
[1753316870113,3.0343416,3639.9,3639.5,4.25]
[1753316870313,3.0343416,3639.9,3639.5,4.6883]
[1753316870518,2.78168366,3639.9,3639.5,4.6883]
[1753316870941,0.0343416,3639.9,3639.5,4.6883]
[1753316871434,2.78168369,3639.9,3639.5,4.6883]
[1753316872716,2.78168369,3639.9,3639.5,0.4383]
[1753316873180,0.0343416,3639.9,3639.5,4.6873]
[1753316873344,0.0343416,3639.9,3639.4,0.1368]
[1753316873894,5.74785667,3639.2,3639.1,0.001]
[1753316874677,3.0,3639.2,3639.1,0.001]
[1753316877157,5.74785667,3639.2,3639.1,0.001]
[1753316880668,3.0,3639.2,3639.1,0.001]
[1753316881263,3.0,3639.2,3639.1,0.4393]
[1753316882047,3.0,3639.2,3639.1,0.001]
[1753316882289,4.249,3639.9,3639.1,1.2662]
[1753316882569,3.0,3639.9,3639.2,0.4383]
[1753316882731,3.0,3639.7,3639.2,3.18615106]
[1753316882934,3.0,3639.7,3639.3,0.4383]
[1753316883130,3.0,3639.7,3639.2,2.74785106]
[1753316883368,2.74784352,3639.3,3639.1,0.8279]
[1753316883568,2.78218703,3639.3,3639.1,0.001]
[1753316883771,0.03434726,3639.3,3639.1,0.001]
[1753316884074,6.96115667,3639.2,3639.1,0.001]
[1753316884550,10.77675667,3639.2,3639.1,0.001]
[1753316885547,6.52875667,3639.2,3639.1,0.001]
[1753316885753,10.77675667,3639.2,3639.1,0.001]
[1753316885950,3.0,3639.2,3639.1,0.001]
[1753316886176,3.0,3639.2,3639.1,3.18723218]
[1753316886780,0.7651,3640.4,3639.4,0.77]
[1753316886938,0.1368,3639.9,3639.5,3.18589182]
[1753316887137,0.1368,3639.9,3639.4,0.77]
[1753316887339,0.1368,3639.9,3639.8,2.7474037]
[1753316887665,0.1368,3640.3,3640.2,2.74702924]
[1753316887868,4.248,3640.6,3640.3,2.74697819]
[1753316888089,0.1368,3640.6,3640.3,2.74697819]
[1753316888286,0.1368,3640.6,3640.4,0.4383]
[1753316888607,0.1368,3640.6,3640.5,2.74687542]
[1753316888772,0.04,3640.9,3640.6,2.74678744]
[1753316888966,0.04,3640.9,3640.6,0.4383]
[1753316889294,0.04,3640.9,3640.8,2.74664908]
[1753316889800,0.04,3640.9,3640.8,0.4734]
[1753316890359,0.04,3640.9,3640.8,3.22004908]
[1753316891011,0.04,3640.9,3640.8,3.97814908]
[1753316891316,0.04,3640.9,3640.8,4.80861101]
[1753316892177,0.04,3640.9,3640.8,4.11494908]
[1753316893105,0.04,3640.9,3640.8,8.36094908]
[1753316899136,0.04,3640.9,3640.8,8.35994908]
[1753316900733,0.04,3640.9,3640.8,4.11494908]
[1753316900938,0.04,3640.9,3640.8,8.35894908]
[1753316901839,0.04,3640.9,3640.8,9.4695216]
[1753316902344,0.04,3640.9,3640.8,4.244]
[1753316902947,0.04,3640.9,3640.8,6.99064908]
[1753316903550,0.04,3640.9,3640.8,4.244]
[1753316904714,0.04,3640.9,3640.6,0.1368]
[1753316904915,0.04,3640.9,3640.7,4.244]
[1753316905142,0.04,3640.9,3640.6,0.1368]
[1753316905348,0.04,3640.9,3640.6,2.88354465]
[1753316905543,0.04,3640.9,3640.6,7.12754465]
[1753316906177,0.04,3640.9,3640.6,4.3808]
[1753316906891,0.04,3640.9,3640.7,2.74672032]
[1753316907492,0.04,3640.9,3640.6,7.60097506]
[1753316908055,0.04,3640.9,3640.6,4.8542]
[1753316908375,0.04,3640.9,3640.8,2.74664908]
[1753316908553,0.04,3640.9,3640.7,3.22009193]
[1753316908750,0.04,3640.9,3640.7,0.4734]
[1753316909070,0.04,3640.9,3640.6,4.3798]
[1753316909460,0.04,3640.9,3640.6,7.12653051]
[1753316909655,0.04,3640.9,3640.6,4.3798]
[1753316910356,0.04,3640.9,3640.6,4.8532]
[1753316911203,0.04,3640.9,3640.7,2.74672123]
[1753316911432,0.04,3640.9,3640.7,6.98972123]
[1753316911919,0.04,3640.9,3640.7,7.46312123]
[1753316912531,0.04,3640.9,3640.8,2.74664908]
[1753316913022,0.04,3640.9,3640.8,0.4734]
[1753316913927,0.04,3640.9,3640.7,6.98971407]
[1753316914308,0.04,3640.9,3640.8,2.74664908]
[1753316914526,0.04,3640.9,3640.8,0.4734]
[1753316914719,0.04,3640.9,3640.7,4.243]
[1753316914903,0.042,3640.9,3640.6,0.1368]
[1753316915103,0.042,3640.9,3640.7,4.242]
[1753316915530,3.52789927,3640.8,3640.6,4.242]
[1753316915729,3.52789927,3640.8,3640.2,0.1368]
[1753316915730,2.78105858,3640.7,3640.2,0.1368]
[1753316915938,2.74694088,3640.5,3639.9,0.4734]
[1753316916238,0.1368,3640.5,3640.1,6.98917174]
[1753316916443,0.1368,3640.5,3640.1,7.46257174]
[1753316917139,0.1368,3640.5,3640.2,2.74709748]
[1753316917340,4.16298007,3640.8,3640.2,3.22044926]
[1753316917341,3.52784957,3640.8,3640.2,3.22044926]
[1753316917643,0.1368,3640.7,3640.3,4.242]
[1753316917817,0.1368,3640.7,3640.4,0.4734]
[1753316919946,2.88353074,3640.7,3640.3,4.242]
[1753316920147,2.88353074,3640.7,3640.0,0.5662]
[1753316920148,0.03433499,3640.6,3640.0,0.5662]
[1753316920302,2.74692605,3640.5,3640.1,4.241]
[1753316920501,0.17113688,3640.4,3640.1,4.241]
[1753316920729,0.17113688,3640.4,3639.8,0.1368]
[1753316920914,0.1368,3640.4,3639.9,3.52289302]
[1753316921129,3.1788,3640.9,3640.4,2.74691878]
[1753316921340,5.92538474,3640.9,3640.5,0.4294]
[1753316921708,2.74666636,3640.8,3640.5,0.4294]
[1753316922032,2.74666636,3640.8,3640.3,4.241]
[1753316922033,3.0,3640.7,3640.3,4.241]
[1753316922354,2.74700793,3640.4,3640.2,4.241]
[1753316922540,2.91814481,3640.4,3640.2,4.241]
[1753316922741,0.17113688,3640.4,3639.9,4.241]
[1753316922909,0.4398,3640.3,3639.9,4.241]
[1753316923110,2.91829144,3640.2,3639.9,4.241]
[1753316923557,0.17113877,3640.2,3639.9,4.241]
[1753316924447,2.74717848,3640.1,3639.7,4.241]
[1753316924610,3.35805967,3640.2,3639.7,4.241]
[1753316925241,0.61093877,3640.2,3639.7,4.241]
[1753316925544,0.17113877,3640.2,3639.7,6.98846618]
[1753316926037,0.17113877,3640.2,3639.7,7.41786618]
[1753316926211,0.1368,3640.2,3639.9,2.74727627]
[1753316926416,0.1368,3640.2,3639.8,3.17677583]
[1753316926641,0.1368,3640.2,3639.8,7.41677583]
[1753316926947,0.1368,3640.2,3639.9,2.74732408]
[1753316927144,0.1368,3640.2,3639.9,3.17672408]
[1753316927447,0.8435,3640.9,3640.3,2.7469802]
[1753316927743,0.1788,3640.9,3640.6,2.74676339]
[1753316928046,0.1788,3640.9,3640.5,0.1368]
[1753316928347,0.1788,3640.9,3640.5,0.5662]
[1753316928532,0.1788,3640.9,3640.5,3.31304464]
[1753316928715,0.1788,3640.9,3640.5,0.5662]
[1753316928910,0.1788,3640.9,3640.5,3.31307232]
[1753316929274,0.1788,3640.9,3640.6,2.74679972]
[1753316929546,0.1788,3640.9,3640.6,3.17619972]
[1753316929750,0.1788,3640.9,3640.6,0.4294]
[1753316930415,0.1788,3640.9,3640.6,3.17619813]
[1753316930853,0.1788,3640.9,3640.6,0.4294]
[1753316931445,0.1788,3640.9,3640.6,3.17619683]
[1753316932022,0.1788,3640.9,3640.6,0.4294]
[1753316932221,0.1788,3640.9,3640.5,7.1236502]
[1753316932929,3.0,3640.6,3639.5,0.4294]
[1753316933125,3.0,3640.6,3639.8,2.74733572]
[1753316933126,0.1368,3640.3,3639.8,2.74733572]
[1753316933537,0.1368,3640.3,3639.8,3.17673572]
[1753316934056,0.1368,3640.3,3639.8,0.4294]
[1753316934259,0.1368,3640.3,3639.8,3.17680223]
[1753316934752,2.88382635,3640.3,3639.8,0.4294]
[1753316934958,0.03433877,3640.2,3639.7,0.1368]
[1753316935133,2.78145308,3640.2,3639.7,0.1368]
[1753316935334,0.03433877,3640.2,3639.7,2.88427675]
[1753316935530,0.03433877,3640.2,3639.7,3.31367675]
[1753316935745,0.03433877,3640.2,3639.7,0.5662]
[1753316935948,2.78144275,3640.2,3639.7,0.5662]
[1753316936555,0.03433877,3640.2,3639.7,2.88427619]
[1753316936766,2.883842,3640.3,3639.8,0.4294]
[1753316936928,2.74711074,3640.2,3639.8,0.4294]
[1753316937455,0.1388,3640.3,3639.8,0.4294]
[1753316937645,0.1388,3640.3,3639.8,3.17679036]
[1753316938258,0.1388,3640.3,3639.8,2.7474037]
[1753316938465,0.1388,3640.3,3640.0,0.7557]
[1753316938764,0.002,3640.3,3640.0,5.1315]
[1753316939060,0.002,3640.3,3640.1,0.4294]
[1753316939270,0.002,3640.3,3640.2,2.7471018]
[1753316939736,0.002,3640.3,3640.2,3.1765018]
[1753316940238,1e-08,3640.6,3640.3,0.8164]
[1753316940544,0.8112,3641.6,3640.3,0.8164]
[1753316940545,0.002,3641.6,3641.2,2.74634735]
[1753316940747,0.002,3641.6,3641.2,10.07781813]
[1753316940921,0.002,3641.6,3641.2,6.25579071]
[1753316941120,0.002,3641.6,3641.2,11.4756596]
[1753316941758,0.002,3641.6,3641.2,0.98186889]
[1753316941964,0.002,3641.6,3641.2,3.17574735]
[1753316942823,0.002,3641.6,3641.2,4.238]
[1753316943557,0.8281,3641.2,3640.6,3.1761766]
[1753316943728,0.8281,3641.2,3640.6,0.4294]
[1753316944131,0.8281,3641.2,3640.7,2.74666961]
[1753316944325,0.8281,3641.2,3640.8,0.4294]
[1753316944729,0.002,3641.3,3640.9,0.4294]
[1753316944963,0.002,3641.3,3641.2,2.74634735]
[1753316945562,0.002,3641.3,3641.2,3.17574735]
[1753316948970,0.002,3641.3,3641.2,7.41274735]
[1753316949344,0.002,3641.3,3640.4,1.2598]
[1753316949548,0.03632839,3641.3,3640.4,1.2598]
[1753316949874,2.74654605,3641.0,3640.3,2.74700306]
[1753316950168,0.03433217,3640.9,3640.1,0.807]
[1753316950374,2.74664908,3640.8,3640.2,4.236]
[1753316950556,2.74664908,3640.8,3640.3,0.1368]
[1753316950943,3.0,3640.8,3640.3,0.1368]
[1753316951168,3.0,3640.8,3640.3,2.88382231]
[1753316951348,3.0,3640.8,3640.3,0.5896]
[1753316951545,0.8102,3641.2,3640.8,2.74659865]
[1753316951758,0.1388,3641.4,3640.9,0.4528]
[1753316951958,3.1388,3641.4,3640.9,0.4528]
[1753316952166,0.1388,3641.4,3641.0,0.4528]
[1753316952479,0.1388,3641.4,3641.0,3.19927286]
[1753316952650,0.1388,3641.4,3640.9,2.74655666]
[1753316952840,0.1388,3641.4,3641.0,0.4528]
[1753316953471,0.1388,3641.4,3641.0,3.19929306]
[1753316954052,0.1388,3641.4,3641.1,0.4528]
[1753316954347,0.002,3641.4,3641.2,2.74634735]
[1753316954570,0.002,3641.4,3641.2,3.19914735]
[1753316955576,0.002,3641.4,3641.2,3.33594735]
[1753316958677,0.002,3641.4,3641.2,2.88314735]
[1753316958847,0.002,3641.4,3641.2,0.1368]
[1753316959048,0.002,3641.4,3641.2,2.88314735]
[1753316959842,0.002,3641.4,3641.2,0.1368]
[1753316960041,3.54603404,3641.4,3640.9,0.001]
[1753316960283,0.9023,3641.4,3640.9,0.001]
[1753316960581,0.9023,3641.4,3640.9,2.74754372]
[1753316960781,0.9023,3641.4,3640.9,3.20034372]
[1753316961154,0.9023,3641.4,3640.9,2.74754372]
[1753316961355,3.64850086,3641.4,3640.9,0.001]
[1753316961560,3.03632839,3641.3,3640.9,0.001]
[1753316961780,0.4474,3641.2,3640.9,0.001]
[1753316961969,2.74649821,3641.0,3640.9,0.001]
[1753316962371,6.19389821,3641.0,3640.9,0.001]
[1753316962847,7.00669821,3641.0,3640.9,0.001]
[1753316965397,3.8128,3641.0,3640.9,0.001]
[1753316965894,6.55929821,3641.0,3640.9,0.001]
[1753316968197,7.00669821,3641.0,3640.9,0.001]
[1753316968705,8.0468,3641.0,3640.9,0.001]
[1753316968905,10.79329821,3641.0,3640.9,0.001]
[1753316969205,11.24069821,3641.0,3640.9,0.001]
[1753316972503,10.79329821,3641.0,3640.9,0.001]
[1753316972701,11.24069821,3641.0,3640.9,0.001]
[1753316974028,25.74069821,3641.0,3640.9,0.001]
[1753316976887,13.93978997,3641.0,3640.9,0.001]
[1753316977207,13.94678997,3641.0,3640.9,0.001]
[1753316977385,28.44678997,3641.0,3640.9,0.001]
[1753316977587,27.98378997,3641.0,3640.9,0.001]
[1753316977787,13.93118997,3641.0,3640.9,0.001]
[1753316979210,9.24278997,3641.0,3640.9,0.001]
[1753316979412,10.78369821,3641.0,3640.9,0.001]
[1753316979623,11.21719821,3641.0,3640.9,0.001]
[1753316980913,10.78369821,3641.0,3640.9,0.001]
[1753316981226,10.78569821,3641.0,3640.9,0.001]
[1753316981649,6.54569821,3641.0,3640.9,0.001]
[1753316981994,9.98549821,3641.0,3640.9,0.001]
[1753316983036,9.98649821,3641.0,3640.9,0.4676]
[1753316983210,9.98649821,3641.0,3640.9,0.001]
[1753316984123,11.34012652,3641.0,3640.9,0.001]
[1753316988510,11.77362652,3641.0,3640.9,0.001]
[1753316990305,11.34012652,3641.0,3640.9,0.001]
[1753316991558,3.002,3641.0,3640.9,0.001]
[1753316991833,7.237,3641.0,3640.9,0.4676]
[1753316992033,9.98349821,3641.0,3640.9,0.4676]
[1753316992338,7.237,3641.0,3640.9,0.001]
[1753316992532,3.002,3641.0,3640.9,0.4676]
[1753316992705,7.25,3641.0,3640.9,0.4676]
[1753316993438,7.249,3641.0,3640.9,0.4676]
[1753316994604,3.002,3641.0,3640.9,3.21417364]
[1753316994938,7.247,3641.0,3640.9,0.4676]
[1753316995613,7.247,3641.0,3640.9,3.21417364]
[1753316995935,4.247,3641.0,3640.9,3.21417364]
[1753316996138,0.002,3641.0,3640.9,3.21417364]
[1753316996351,0.002,3641.0,3640.9,2.45486917]
[1753316996569,0.002,3641.0,3640.9,1.2951]
[1753316996847,10.04649821,3641.0,3640.9,0.001]
[1753316997051,11.27029821,3641.0,3640.9,0.001]
[1753316997453,6.97229821,3641.0,3640.9,0.001]
[1753316997754,11.28029821,3641.0,3640.9,0.001]
[1753316997954,12.68316807,3641.0,3640.9,0.001]
[1753316998855,12.68316807,3641.0,3640.9,1e-08]
[1753316999220,13.27582503,3641.0,3640.9,1e-08]
[1753316999419,12.68316807,3641.0,3640.9,1e-08]
[1753316999845,12.24766807,3641.0,3640.9,1e-08]
[1753317000214,12.68116807,3641.0,3640.9,1e-08]
[1753317002418,7.94166807,3641.0,3640.9,1e-08]
[1753317002657,12.67716807,3641.0,3640.9,1e-08]
[1753317003627,12.67716807,3641.0,3639.1,0.041]
[1753317003628,2.74763016,3639.5,3639.1,0.041]
[1753317003852,5.74785667,3639.2,3639.1,0.041]
[1753317004052,10.87585667,3639.2,3639.1,0.041]
[1753317004256,11.30935667,3639.2,3639.1,0.041]
[1753317005235,11.43894597,3639.2,3639.1,0.041]
[1753317006033,11.00544597,3639.2,3639.1,0.041]
[1753317006239,12.43571875,3639.2,3639.1,0.041]
[1753317006434,12.30612945,3639.2,3639.1,0.041]
[1753317007833,8.00612945,3639.2,3639.1,0.041]
[1753317008043,12.30612945,3639.2,3639.1,0.041]
[1753317010366,12.74452945,3639.2,3639.1,0.041]
[1753317010861,2.74823425,3638.7,3638.6,0.001]
[1753317011156,11.37782483,3638.7,3638.6,0.001]
[1753317011357,11.78187191,3638.7,3638.6,0.001]
[1753317012263,3.50196086,3638.4,3638.3,0.001]
[1753317012462,6.55341195,3638.2,3638.1,0.041]
[1753317012662,12.32042127,3638.2,3638.1,0.041]
[1753317012837,12.75882127,3638.2,3638.1,0.041]
[1753317013179,12.32042127,3638.2,3638.1,0.041]
[1753317013879,7.22362127,3638.2,3638.1,0.041]
[1753317014076,3.0,3638.2,3638.1,0.4833]
[1753317014443,7.29,3638.2,3638.1,0.4833]
[1753317014744,10.03861195,3638.2,3638.1,0.4833]
[1753317015176,11.33100524,3638.2,3638.1,0.041]
[1753317015674,3.0,3638.2,3638.1,0.4833]
[1753317015976,7.289,3638.2,3638.1,1.243]
[1753317020074,10.03761195,3638.2,3638.1,0.041]
[1753317020851,10.03761195,3638.2,3638.1,157.8059]
[1753317022363,10.03761195,3638.2,3638.1,147.83577774]
[1753317022364,11.29621195,3638.2,3638.1,147.83577774]
[1753317022684,11.29621195,3638.2,3638.1,80.02583693]
[1753317022984,25.79621195,3638.2,3638.1,80.02583693]
[1753317023153,26.34621195,3638.2,3638.1,80.02583693]
[1753317024267,21.06881195,3638.2,3638.1,80.02583693]
[1753317024466,25.34981195,3638.2,3638.1,80.02583693]
[1753317025077,2.74883861,3637.9,3637.8,0.001]
[1753317025278,7.02883861,3637.9,3637.8,0.001]
[1753317025577,10.02883861,3637.9,3637.8,0.001]
[1753317025744,11.23823861,3637.9,3637.8,0.001]
[1753317026142,3.29898974,3637.7,3637.6,0.001]
[1753317026377,6.55435211,3637.7,3637.6,0.001]
[1753317026556,10.79798974,3637.7,3637.6,0.001]
[1753317027372,10.79598974,3637.7,3637.6,0.001]
[1753317027970,6.51998974,3637.7,3637.6,0.001]
[1753317028153,10.02598974,3637.7,3637.6,0.4433]
[1753317028357,10.02598974,3637.7,3637.6,0.001]
[1753317030182,10.46438974,3637.7,3637.6,0.001]
[1753317031886,24.52598974,3637.7,3637.6,0.001]
[1753317032783,24.96438974,3637.7,3637.6,0.001]
[1753317033168,2.74936764,3637.2,3637.1,0.041]
[1753317033372,2.75012375,3636.2,3636.1,0.041]
[1753317033550,10.06250029,3636.2,3636.1,0.041]
[1753317033751,10.02812375,3636.2,3636.1,0.041]
[1753317033944,24.52812375,3636.2,3636.1,0.041]
[1753317034149,10.02812375,3636.2,3636.1,0.041]
[1753317034682,24.52812375,3636.2,3636.1,0.041]
[1753317035358,24.96652375,3636.2,3636.1,0.041]
[1753317036247,26.27452375,3636.2,3636.1,0.041]
[1753317036482,21.00812375,3636.2,3636.1,0.041]
[1753317036678,25.29012375,3636.2,3636.1,0.041]
[1753317037188,25.72852375,3636.2,3636.1,0.041]
[1753317037684,26.27852375,3636.2,3636.1,0.041]
[1753317038298,26.27852375,3636.2,3635.1,0.04]
[1753317038299,5.75088028,3635.2,3635.1,0.04]
[1753317038589,10.02988028,3635.2,3635.1,0.04]
[1753317040810,10.46848028,3635.2,3635.1,0.04]
[1753317040963,11.01848028,3635.2,3635.1,0.04]
[1753317041152,11.83238028,3635.2,3635.1,0.04]
[1753317041352,26.33238028,3635.2,3635.1,0.04]
[1753317041576,25.89378028,3635.2,3635.1,0.04]
[1753317041795,25.34378028,3635.2,3635.1,0.04]
[1753317041966,21.06478028,3635.2,3635.1,0.04]
[1753317042181,24.52688028,3635.2,3635.1,0.04]
[1753317042392,17.5,3635.2,3635.1,0.5044]
[1753317042602,7.275,3635.2,3635.1,0.5044]
[1753317042908,3.0,3635.2,3635.1,0.5044]
[1753317043305,7.274,3635.2,3635.1,0.5044]
[1753317043506,4.274,3635.2,3635.1,4.37444278]
[1753317043803,4.274,3635.2,3635.1,1.62355181]
[1753317044177,4.274,3635.2,3635.1,1.298]
[1753317044596,4.274,3635.2,3635.1,4.04895595]
[1753317045380,7.274,3635.2,3635.1,4.04895595]
[1753317046481,7.274,3635.2,3635.1,1.298]
[1753317046898,7.274,3635.2,3635.1,0.5044]
[1753317047071,10.02488028,3635.2,3635.1,0.04]
[1753317047616,10.02488028,3635.2,3635.1,0.041]
[1753317047817,10.46348028,3635.2,3635.1,0.041]
[1753317048123,24.96348028,3635.2,3635.1,0.041]
[1753317048364,10.02488028,3635.2,3635.1,0.041]
[1753317048681,24.52488028,3635.2,3635.1,0.041]
[1753317051792,10.02488028,3635.2,3635.1,0.041]
[1753317052209,24.52488028,3635.2,3635.1,0.041]
[1753317053623,24.96348028,3635.2,3635.1,0.041]
[1753317053828,24.52488028,3635.2,3635.1,0.041]
[1753317055416,10.02488028,3635.2,3635.1,0.041]
[1753317055800,24.52488028,3635.2,3635.1,0.041]
[1753317057417,20.25088028,3635.2,3635.1,0.041]
[1753317057618,10.01588028,3635.2,3635.1,0.041]
[1753317057914,10.01388028,3635.2,3635.1,0.041]
[1753317058121,10.01388028,3635.2,3635.1,0.5054]
[1753317058302,10.01388028,3635.2,3635.1,0.041]
[1753317059419,4.263,3635.2,3635.1,0.5054]
[1753317059620,4.263,3635.2,3635.1,1.3133]
[1753317059824,0.1368,3635.2,3635.1,4.7457955]
[1753317060121,9.3572911,3636.0,3635.3,2.75080461]
[1753317060122,0.1368,3635.4,3635.3,2.75080461]
[1753317060420,4.262,3635.8,3635.5,3.50175328]
[1753317060597,3.0,3635.7,3635.6,3.21497762]
[1753317060948,3.0,3635.7,3635.6,2.75057762]
[1753317061126,3.0,3635.7,3635.5,0.7511]
[1753317061420,7.262,3635.6,3635.5,3.50175328]
[1753317061623,0.1368,3636.1,3635.5,1.39002941]
[1753317061830,4.261,3636.0,3635.9,2.75035066]
[1753317062029,7.262,3636.0,3635.9,3.97692047]
[1753317062594,4.262,3636.0,3635.9,3.97692047]
[1753317063226,4.262,3636.0,3635.9,3.97695066]
[1753317063730,4.262,3636.0,3635.9,1.2266]
[1753317064024,7.262,3636.0,3635.9,1.63799773]
[1753317065929,7.262,3636.0,3635.9,4.38834839]
[1753317066429,3.0,3636.0,3635.9,4.38834839]
[1753317066604,3.0,3636.8,3636.3,2.75004132]
[1753317066803,3.0,3636.6,3636.4,0.4644]
[1753317067009,7.257,3636.5,3636.4,1.2526]
[1753317070733,7.257,3636.5,3636.4,0.4644]
[1753317070950,3.0,3636.3,3636.1,0.7816]
[1753317071235,4.252,3636.2,3636.1,1.2524]
[1753317071404,4.252,3636.2,3636.1,0.7816]
[1753317072032,4.252,3636.2,3636.1,1.2524]
[1753317072033,7.252,3636.2,3636.1,1.2524]
[1753317072231,7.252,3636.2,3635.9,0.1368]
[1753317072432,4.252,3636.2,3636.0,0.4708]
[1753317072633,4.252,3636.2,3635.8,3.5319747]
[1753317072931,7.252,3636.2,3636.1,0.4708]
[1753317076605,7.249,3636.2,3636.1,3.22099938]
[1753317077013,7.249,3636.2,3635.9,2.88708453]
[1753317077014,3.0,3636.1,3636.0,2.75025476]
[1753317077217,0.7892,3637.2,3636.3,2.75002076]
[1753317077535,3.0,3636.8,3636.3,2.75002076]
[1753317077719,3.0,3636.6,3636.4,0.4708]
[1753317078038,7.249,3636.5,3636.4,0.4708]
[1753317078239,7.249,3636.5,3636.3,2.7500452]
[1753317078445,7.249,3636.5,3636.4,2.7499725]
[1753317078737,7.249,3636.5,3636.4,3.2207725]
[1753317078937,0.002,3637.0,3636.5,0.774]
[1753317079138,0.002,3637.0,3636.5,4.00814536]
[1753317079435,4.251,3637.0,3636.9,2.74959443]
[1753317079613,3.0,3636.9,3636.8,2.88643961]
[1753317079827,4.251,3637.0,3636.8,0.1368]
[1753317080053,3.0,3636.9,3636.5,0.774]
[1753317080348,3.0,3636.9,3636.7,2.74969522]
[1753317080531,3.0,3636.9,3636.6,2.74979039]
[1753317080715,3.0,3636.9,3636.8,0.4708]
[1753317081143,3.0,3636.9,3636.8,3.22047003]
[1753317081651,0.002,3637.0,3636.9,2.74959443]
[1753317081951,0.002,3637.0,3636.9,4.06630302]
[1753317083131,0.002,3637.0,3636.9,4.61630302]
[1753317083733,0.002,3637.8,3637.7,3.58068974]
[1753317083937,0.002,3637.8,3637.7,3.73098322]
[1753317084133,0.002,3637.8,3637.7,6.30281413]
[1753317084321,0.002,3637.8,3637.7,6.28932065]
[1753317086054,0.002,3637.8,3637.7,10.53732065]
[1753317086551,0.002,3637.8,3637.7,2.99033091]
[1753317086853,0.002,3637.8,3637.7,1.4393]
[1753317087061,0.002,3637.8,3637.7,1.64202221]
[1753317087855,0.002,3637.8,3637.7,0.1368]
[1753317088156,2.75097228,3637.8,3637.3,0.9226]
[1753317088456,0.002,3637.8,3637.4,3.22001289]
[1753317088656,0.002,3637.8,3637.5,0.4708]
[1753317089353,2.75091875,3637.8,3637.5,0.4708]
[1753317089536,2.75091934,3637.8,3637.5,0.4708]
[1753317089726,0.002,3637.8,3637.5,0.4708]
[1753317090152,2.75091667,3637.8,3637.5,0.4708]
[1753317090356,0.002,3637.8,3637.5,0.4708]
[1753317090551,2.7509233,3637.8,3637.5,0.4708]
[1753317090757,0.002,3637.8,3637.5,0.4708]
[1753317091061,0.002,3637.8,3637.3,0.9226]
[1753317091258,0.002,3637.8,3637.5,0.4708]
[1753317091562,0.002,3637.8,3637.5,3.37406248]
[1753317091762,0.002,3637.8,3637.7,2.88578974]
[1753317092062,0.002,3637.8,3637.7,7.66803838]
[1753317092356,0.002,3637.8,3637.7,8.96923838]
[1753317093261,0.002,3637.8,3637.7,9.51923838]
[1753317093470,0.002,3637.8,3637.7,11.45974656]
[1753317094557,0.002,3638.0,3637.9,4.10403861]
[1753317094759,0.002,3638.0,3637.9,4.11752831]
[1753317094964,4.249,3639.1,3638.2,4.10381195]
[1753317095159,4.249,3639.1,3638.2,8.36429598]
[1753317095359,0.002,3639.1,3638.2,9.79775532]
[1753317095564,0.002,3639.1,3638.2,10.40535532]
[1753317098501,0.002,3639.1,3638.8,4.09125873]
[1753317098674,0.002,3639.1,3638.8,8.35073143]
[1753317098850,0.002,3639.1,3638.8,8.80805873]
[1753317099044,0.002,3639.1,3638.8,10.5787141]
[1753317102647,0.002,3639.1,3638.8,6.3327141]
[1753317102852,0.002,3639.1,3638.8,10.5777141]
[1753317103873,0.002,3639.8,3639.2,3.29785667]
[1753317104053,0.002,3639.8,3639.2,12.33857046]
[1753317104384,0.002,3639.8,3639.2,14.49418312]
[1753317104969,0.002,3639.8,3639.2,15.28778312]
[1753317105171,0.002,3639.8,3639.7,3.29747918]
[1753317105482,0.002,3639.8,3639.7,8.31087918]
[1753317105794,0.002,3639.8,3639.7,8.89107918]